fUST/lending_fUST_20260107
["ID","MTS","AMOUNT","RATE_DAILY","PERIOD"]
[400652894,1767768642796,-2055.38293137,0.0001844,2]
[400652895,1767768642807,-5000.0,0.0001863,2]
[400652896,1767768642816,-2338.56279606,0.0001863,2]
[400652897,1767768642825,-5500.0,0.00018752,2]
[400652898,1767768642835,-5500.0,0.00018752,2]
[400652899,1767768642846,-1041.66666667,0.00018797,2]
[400652900,1767768642855,-160.0,0.00018799,2]
[400652901,1767768642864,-1000.0,0.00018958,2]
[400652902,1767768642874,-244.0,0.00018958,2]
[400652903,1767768642886,-5416.70070875,0.00019048,2]
[400652904,1767768642896,-159.0,0.00019096,3]
[400652905,1767768642905,-900.0,0.00019178,2]
[400652906,1767768642915,-5500.0,0.00019178,2]
[400652907,1767768642924,-2445.01,0.000192,2]
[400652908,1767768642934,-258.12,0.000192,2]
[400652909,1767768642943,-243.07,0.000192,2]
[400652910,1767768642952,-25963.54,0.000192,2]
[400652911,1767768642962,-167.78,0.000192,2]
[400652912,1767768642971,-3090.5348424,0.000193,2]
[400652913,1767768642980,-6000.0,0.000193,2]
[400652914,1767768642989,-416.11271782,0.00019451,2]
[400652915,1767768642999,-1242.85767655,0.00019589,11]
[400652916,1767768643009,-1094.0,0.00019617,2]
[400652917,1767768643018,-1549.57669197,0.00019726,2]
[400652918,1767768643027,-1011.36258874,0.00019726,2]
[400652919,1767768643037,-8045.68317556,0.00019758,2]
[400652920,1767768643046,-346.1,0.00019783,2]
[400652921,1767768643056,-6500.0,0.00019848,2]
[400652922,1767768643065,-1972.0,0.0002,2]
[400652923,1767768643075,-210.20532748,0.0002,2]
[400652924,1767768643084,-181.25348447,0.0002,2]
[400652925,1767768643093,-4149.44005361,0.00020014,2]
[400652926,1767768643104,-5002.67735813,0.00020396,2]
[400652927,1767768643113,-1000.0,0.00020854,2]
[400652928,1767768643122,-492.0,0.00020854,2]
[400652929,1767768643133,-168.0,0.00021288,4]
[400652930,1767768643141,-346.1,0.0002139,2]
[400652933,1767768643306,-459.65939759,0.00021451,2]
[400652934,1767768643316,-283.8,0.00021713,2]
[400652935,1767768643326,-5252.69234737,0.00021958,2]
[400652936,1767768643335,-767.47863178,0.00022171,2]
[400652937,1767768643345,-8045.68317556,0.00022304,2]
[400652938,1767768643355,-1908.17,0.000224,7]
[400652940,1767768643364,-25963.54,0.000224,2]
[400652942,1767768643373,-300.0,0.00022466,2]
[400652944,1767768643383,-1759.06108047,0.00022494,16]
[400652946,1767768643392,-258.12,0.000225,7]
[400652948,1767768643401,-243.07,0.000225,7]
[400652950,1767768643411,-4624.61159557,0.00022528,2]
[400652952,1767768643420,-7376.78231753,0.00022826,2]
[400652953,1767768643429,-1000.0,0.0002294,10]
[400652954,1767768643438,-791.0,0.0002294,10]
[400652955,1767768643447,-346.1,0.00022996,2]
[400652956,1767768643457,-261.33,0.00023,2]
[400652957,1767768643466,-153.54961216,0.00023,2]
[400652958,1767768643475,-450.0,0.00023014,2]
[400652959,1767768643485,-2200.0,0.00023171,2]
[400652960,1767768643495,-500.0,0.00023187,2]
[400652961,1767768643504,-2200.0,0.00023247,2]
[400652962,1767768643513,-5416.70070875,0.00023401,2]
[400652963,1767768643523,-503.20607737,0.00023451,2]
[400652964,1767768643534,-2200.0,0.00023451,2]
[400652965,1767768643544,-600.0,0.00023562,2]
[400652966,1767768643555,-2200.0,0.00023646,2]
[400652967,1767768643565,-2200.0,0.00023817,2]
[400652968,1767768643574,-2035.20631012,0.00023946,19]
[400652969,1767768643584,-750.0,0.0002411,2]
[400652970,1767768643598,-500.0,0.00024139,2]
[400652971,1767768643609,-2200.0,0.00024162,2]
[400652972,1767768643618,-2445.01,0.000242,14]
[400652973,1767768643629,-500.0,0.00024324,2]
[400652974,1767768643640,-206.87458235,0.00024392,14]
[400652975,1767768643652,-2200.0,0.00024429,2]
[400652976,1767768643661,-173.0,0.00024575,13]
[400652977,1767768643671,-2200.0,0.0002458,2]
[400652978,1767768643680,-15924.41,0.000246,3]
[400652979,1767768643689,-346.1,0.00024603,2]
[400652980,1767768643699,-1402.0,0.00024616,2]
[400652981,1767768643709,-900.0,0.00024658,2]
[400652982,1767768643719,-500.0,0.00024658,2]
[400652983,1767768643728,-168.0,0.00024659,2]
[400652984,1767768643737,-500.0,0.00024774,2]
[400652985,1767768643746,-168.0,0.00024775,2]
[400652986,1767768643755,-500.0,0.00024795,2]
[400652987,1767768643765,-8045.68317556,0.00024849,2]
[400652988,1767768643775,-168.0,0.00024875,2]
[400652989,1767768643784,-25963.54,0.000249,2]
[400652990,1767768643793,-200.632316,0.000249,7]
[400652991,1767768643803,-200.632316,0.000249,7]
[400652992,1767768643812,-200.632316,0.000249,7]
[400652993,1767768643821,-200.632316,0.000249,7]
[400652994,1767768643830,-209.524359,0.000249,7]
[400652995,1767768643839,-209.524359,0.000249,7]
[400652996,1767768643848,-209.524359,0.000249,7]
[400652997,1767768643858,-209.524359,0.000249,7]
[400652998,1767768643867,-241.004676,0.000249,7]
[400652999,1767768643876,-1016.281206,0.000249,7]
[400653000,1767768643887,-241.004676,0.000249,7]
[400653001,1767768643896,-241.004676,0.000249,7]
[400653002,1767768643905,-1016.281206,0.000249,7]
[400653003,1767768643914,-1016.281206,0.000249,7]
[400653004,1767768643923,-241.004676,0.000249,7]
[400653005,1767768643932,-1016.281206,0.000249,7]
[400653006,1767768643941,-151.0,0.000249,7]
[400653007,1767768643951,-530.111159,0.000249,7]
[400653008,1767768643960,-530.111159,0.000249,7]
[400653009,1767768643969,-530.111159,0.000249,7]
[400653010,1767768643978,-530.111159,0.000249,7]
[400653011,1767768643987,-225.672265,0.000249,7]
[400653012,1767768643996,-225.672265,0.000249,7]
[400653013,1767768644005,-151.0,0.000249,7]
[400653014,1767768644014,-218.702509,0.000249,7]
[400653015,1767768644023,-225.672265,0.000249,7]
[400653016,1767768644032,-225.672265,0.000249,7]
[400653017,1767768644041,-218.702509,0.000249,7]
[400653018,1767768644050,-218.702509,0.000249,7]
[400653019,1767768644059,-218.702509,0.000249,7]
[400653020,1767768644068,-151.0,0.000249,7]
[400653021,1767768644078,-184.812283,0.000249,7]
[400653022,1767768644088,-184.812283,0.000249,7]
[400653023,1767768644097,-184.812283,0.000249,7]
[400653024,1767768644106,-151.0,0.000249,7]
[400653025,1767768644115,-184.812283,0.000249,7]
[400653026,1767768644124,-151.0,0.000249,7]
[400653027,1767768644134,-151.528573,0.000249,7]
[400653028,1767768644143,-634.815792,0.000249,7]
[400653029,1767768644152,-634.815792,0.000249,7]
[400653030,1767768644161,-634.815792,0.000249,7]
[400653031,1767768644171,-634.815792,0.000249,7]
[400653032,1767768644180,-151.0,0.000249,7]
[400653033,1767768644189,-247.352857,0.000249,7]
[400653034,1767768644198,-151.0,0.000249,7]
[400653035,1767768644208,-151.0,0.000249,7]
[400653036,1767768644217,-247.352857,0.000249,7]
[400653037,1767768644226,-247.352857,0.000249,7]
[400653038,1767768644235,-247.352857,0.000249,7]
[400653039,1767768644244,-151.0,0.000249,7]
[400653040,1767768644253,-298.315005,0.000249,7]
[400653041,1767768644262,-151.0,0.000249,7]
[400653042,1767768644271,-298.315005,0.000249,7]
[400653043,1767768644280,-151.0,0.000249,7]
[400653044,1767768644290,-298.315005,0.000249,7]
[400653045,1767768644299,-151.0,0.000249,7]
[400653046,1767768644308,-298.315005,0.000249,7]
[400653047,1767768644317,-151.0,0.000249,7]
[400653048,1767768644326,-205.742012,0.000249,7]
[400653049,1767768644336,-205.742012,0.000249,7]
[400653050,1767768644345,-151.0,0.000249,7]
[400653051,1767768644354,-205.742012,0.000249,7]
[400653052,1767768644363,-151.0,0.000249,7]
[400653053,1767768644372,-205.742012,0.000249,7]
[400653054,1767768644381,-622309.500941,0.000249,2]
[400653055,1767768644390,-207.616806,0.000249,7]
[400653056,1767768644400,-440.287203,0.000249,7]
[400653057,1767768644410,-440.287203,0.000249,7]
[400653058,1767768644420,-440.287203,0.000249,7]
[400653059,1767768644430,-440.287203,0.000249,7]
[400653060,1767768644441,-151.0,0.00024905,7]
[400653061,1767768644451,-151.0,0.00024905,7]
[400653062,1767768644461,-183.522133,0.00024905,7]
[400653063,1767768644470,-500.0,0.00024932,2]
[400653064,1767768644479,-168.0,0.00025005,2]
[400653065,1767768644488,-1908.17,0.000251,7]
[400653066,1767768644497,-500.0,0.00025178,7]
[400653067,1767768644506,-250.0,0.00025205,2]
[400653068,1767768644516,-1181.07580657,0.00025205,2]
[400653069,1767768644527,-5295.0,0.00025229,2]
[400653070,1767768644535,-1000.0,0.00025234,10]
[400653071,1767768644545,-1000.0,0.00025234,10]
[400653072,1767768644554,-168.0,0.00025378,2]
[400653073,1767768644563,-2200.0,0.00025392,7]
[400653074,1767768644573,-2322.15281538,0.00025398,21]
[400653075,1767768644583,-258.12,0.000254,7]
[400653076,1767768644592,-243.07,0.000254,7]
[400653077,1767768644604,-168.0,0.00025417,2]
[400653078,1767768644613,-546.75275714,0.00025451,2]
[400653079,1767768644623,-259.78430152,0.0002548,2]
[400653080,1767768644632,-150.40721649,0.0002548,2]
[400653081,1767768644641,-153.84706237,0.0002548,2]
[400653082,1767768644652,-500.0,0.0002548,2]
[400653083,1767768644661,-176.1819283,0.0002548,2]
[400653084,1767768644671,-500.0,0.00025586,7]
[400653085,1767768644680,-500.0,0.00025617,2]
[400653086,1767768644690,-1402.0,0.00025749,7]
[400653087,1767768644699,-350.0,0.00025753,2]
[400653088,1767768644710,-609.50906543,0.00025754,2]
[400653089,1767768644720,-2200.0,0.00025798,7]
[400653090,1767768644729,-5294.0,0.00025805,7]
[400653091,1767768644739,-168.0,0.00025817,2]
[400653092,1767768644749,-168.0,0.00025851,2]
[400653093,1767768644759,-151.2254809,0.00025891,2]
[400653094,1767768644768,-1402.0,0.00026107,2]
[400653095,1767768644777,-1402.0,0.00026151,2]
[400653097,1767768644787,-500.0,0.00026156,7]
[400653098,1767768644796,-168.0,0.00026181,2]
[400653099,1767768644805,-2445.01,0.000262,14]
[400653100,1767768644815,-346.1,0.0002621,2]
[400653101,1767768644824,-450.0,0.00026301,2]
[400653102,1767768644834,-168.0,0.00026304,2]
[400653103,1767768644844,-168.0,0.0002635,2]
[400653104,1767768644853,-1626.684503,0.00026353,7]
[400653105,1767768644862,-1626.684503,0.00026353,7]
[400653106,1767768644871,-1626.684503,0.00026353,7]
[400653107,1767768644880,-1626.684503,0.00026353,7]
[400653108,1767768644890,-151.0,0.00026353,7]
[400653109,1767768644899,-151.0,0.00026353,7]
[400653110,1767768644908,-151.0,0.00026353,7]
[400653111,1767768644917,-151.0,0.00026353,7]
[400653112,1767768644926,-289.726143,0.00026353,7]
[400653113,1767768644936,-194.927323,0.00026353,7]
[400653114,1767768644945,-194.927323,0.00026353,7]
[400653115,1767768644954,-194.927323,0.00026353,7]
[400653116,1767768644963,-151.0,0.00026353,7]
[400653117,1767768644972,-151.0,0.00026353,7]
[400653118,1767768644981,-194.927323,0.00026353,7]
[400653119,1767768644990,-151.0,0.00026353,7]
[400653120,1767768644999,-1402.0,0.00026353,2]
[400653121,1767768645008,-2200.0,0.00026369,7]
[400653122,1767768645018,-5294.0,0.00026386,2]
[400653123,1767768645027,-25963.54,0.000264,2]
[400653124,1767768645036,-1974.17602471,0.00026413,2]
[400653125,1767768645046,-168.0,0.00026493,2]
[400653126,1767768645055,-500.0,0.0002654,7]
[400653127,1767768645064,-1402.0,0.00026564,2]
[400653128,1767768645074,-1402.0,0.00026647,2]
[400653129,1767768645083,-2200.0,0.00026666,7]
[400653130,1767768645092,-2200.0,0.00026669,7]
[400653131,1767768645102,-1908.17,0.000267,7]
[400653132,1767768645111,-500.0,0.00026756,7]
[400653133,1767768645120,-2200.0,0.00026833,7]
[400653134,1767768645129,-550.0,0.00026849,2]
[400653135,1767768645139,-2619.17789027,0.00026851,24]
[400653136,1767768645148,-168.0,0.00026894,2]
[400653137,1767768645157,-500.0,0.00026907,7]
[400653138,1767768645166,-152.0,0.00027,7]
[400653139,1767768645175,-5294.0,0.00027128,2]
[400653140,1767768645185,-168.0,0.0002714,2]
[400653142,1767768645194,-258.12,0.000272,7]
[400653143,1767768645203,-243.07,0.000272,7]
[400653144,1767768645212,-500.0,0.00027265,7]
[400653145,1767768645222,-2200.0,0.0002729,7]
[400653146,1767768645231,-500.0,0.00027318,7]
[400653147,1767768645241,-2200.0,0.00027347,7]
[400653148,1767768645250,-8045.68317556,0.00027394,2]
[400653149,1767768645259,-223.83334036,0.00027397,2]
[400653150,1767768645269,-1346.23,0.00027397,2]
[400653151,1767768645278,-650.0,0.00027397,5]
[400653152,1767768645289,-500.0,0.00027397,5]
[400653153,1767768645299,-514.81933417,0.00027397,5]
[400653154,1767768645309,-590.29943691,0.00027451,2]
[400653155,1767768645321,-151.0,0.00027553,7]
[400653156,1767768645330,-151.0,0.00027553,7]
[400653157,1767768645339,-151.0,0.00027553,7]
[400653158,1767768645349,-151.0,0.00027553,7]
[400653159,1767768645358,-151.0,0.00027553,7]
[400653160,1767768645368,-151.0,0.00027553,7]
[400653161,1767768645377,-206.889733,0.00027553,7]
[400653162,1767768645386,-151.0,0.00027553,7]
[400653163,1767768645395,-151.0,0.00027553,7]
[400653164,1767768645405,-2200.0,0.00027584,7]
[400653165,1767768645414,-500.0,0.00027601,7]
[400653166,1767768645423,-5416.70070875,0.00027753,2]
[400653167,1767768645432,-1000.0,0.00027757,30]
[400653168,1767768645441,-1000.0,0.00027757,30]
[400653169,1767768645451,-579.0,0.00027757,30]
[400653170,1767768645460,-2200.0,0.00027773,7]
[400653171,1767768645470,-300.0,0.00027781,2]
[400653172,1767768645569,-300.0,0.00027781,2]
[400653173,1767768645578,-300.0,0.00027808,2]
[400653174,1767768645589,-300.0,0.00027808,2]
[400653175,1767768645600,-300.0,0.00027808,2]
[400653176,1767768645613,-300.0,0.00027808,2]
[400653177,1767768645624,-346.1,0.00027816,2]
[400653178,1767768645634,-300.0,0.00027836,2]
[400653179,1767768645644,-300.0,0.00027836,2]
[400653180,1767768645653,-177.0,0.00027863,26]
[400653181,1767768645662,-2200.0,0.00027897,7]
[400653182,1767768645673,-2200.0,0.00027917,7]
[400653183,1767768645682,-1000.0,0.00027945,5]
[400653184,1767768645691,-750.0,0.00027945,5]
[400653185,1767768645701,-250.0,0.00027945,5]
[400653186,1767768645711,-250.0,0.00027945,5]
[400653187,1767768645720,-5000.0,0.00028038,2]
[400653188,1767768645730,-2200.0,0.00028045,7]
[400653189,1767768645739,-25963.54,0.000281,2]
[400653190,1767768645748,-151.0,0.00028101,7]
[400653191,1767768645758,-151.0,0.00028101,7]
[400653192,1767768645767,-276.176938,0.00028101,7]
[400653193,1767768645777,-214.456704,0.00028101,7]
[400653194,1767768645786,-214.456704,0.00028101,7]
[400653195,1767768645796,-214.456704,0.00028101,7]
[400653196,1767768645805,-214.456704,0.00028101,7]
[400653197,1767768645815,-151.0,0.00028101,7]
[400653198,1767768645824,-151.0,0.00028101,7]
[400653199,1767768645834,-151.0,0.00028101,7]
[400653200,1767768645843,-500.0,0.00028125,7]
[400653201,1767768645853,-500.0,0.00028183,7]
[400653202,1767768645863,-2445.01,0.000282,14]
[400653203,1767768645872,-2925.66984921,0.00028303,27]
[400653204,1767768645882,-850.0,0.00028493,5]
[400653205,1767768645893,-1345.06654584,0.00028493,5]
[400653206,1767768645903,-350.0,0.00028493,5]
[400653207,1767768645912,-350.0,0.00028493,5]
[400653208,1767768645922,-1908.17,0.000285,7]
[400653209,1767768645931,-1346.23,0.00028767,4]
[400653210,1767768645941,-2200.0,0.00028779,7]
[400653211,1767768645950,-2200.0,0.00028793,7]
[400653212,1767768645959,-2200.0,0.0002887,7]
[400653213,1767768645969,-2200.0,0.00028933,7]
[400653214,1767768645978,-500.0,0.00028951,7]
[400653215,1767768645988,-1020.52354742,0.00029,2]
[400653216,1767768645997,-950.0,0.00029041,5]
[400653217,1767768646007,-450.0,0.00029041,5]
[400653218,1767768646016,-450.0,0.00029041,5]
[400653219,1767768646026,-2200.0,0.00029095,7]
[400653220,1767768646035,-258.12,0.000291,7]
[400653221,1767768646045,-243.07,0.000291,7]
[400653222,1767768646055,-346.1,0.00029423,3]
[400653223,1767768646064,-633.84611668,0.00029451,2]
[400653224,1767768646073,-2000.0,0.00029485,7]
[400653225,1767768646082,-261.33,0.000295,2]
[400653226,1767768646091,-1050.0,0.00029589,5]
[400653227,1767768646100,-550.0,0.00029589,5]
[400653228,1767768646110,-550.0,0.00029589,5]
[400653229,1767768646119,-152.0,0.000296,10]
[400653230,1767768646128,-500.0,0.0002961,7]
[400653231,1767768646138,-5000.0,0.00029663,2]
[400653232,1767768646147,-25963.54,0.000297,2]
[400653233,1767768646156,-3241.10295706,0.00029755,30]
[400653234,1767768646165,-8045.68317556,0.00029939,2]
[400653235,1767768646174,-184.0,0.0003,14]
[400653236,1767768646184,-1019.0,0.0003,7]
[400653237,1767768646194,-1001.03390951,0.0003,14]
[400653238,1767768646203,-2000.0,0.0003001,7]
[400653239,1767768646212,-151.0,0.00030014,2]
[400653240,1767768646222,-156.587,0.00030014,2]
[400653241,1767768646232,-879.43912167,0.00030014,2]
[400653242,1767768646241,-151.76560532,0.00030014,2]
[400653243,1767768646251,-151.0,0.00030014,2]
[400653244,1767768646260,-151.0,0.00030014,2]
[400653245,1767768646269,-514.84070869,0.00030014,2]
[400653246,1767768646278,-151.0,0.00030014,2]
[400653247,1767768646288,-151.0,0.00030014,2]
[400653248,1767768646297,-157.242965,0.00030014,2]
[400653249,1767768646306,-1500.0,0.00030014,2]
[400653250,1767768646315,-1500.0,0.00030014,2]
[400653251,1767768646325,-1500.0,0.00030014,2]
[400653252,1767768646335,-1500.0,0.00030014,2]
[400653253,1767768646344,-1500.0,0.00030014,2]
[400653254,1767768646354,-30000.0,0.00030014,2]
[400653255,1767768646363,-1500.0,0.00030014,2]
[400653256,1767768646372,-250.0,0.00030014,2]
[400653257,1767768646381,-1500.0,0.00030014,2]
[400653258,1767768646390,-250.0,0.00030014,2]
[400653259,1767768646399,-1500.0,0.00030014,2]
[400653260,1767768646408,-250.0,0.00030014,2]
[400653261,1767768646417,-1500.0,0.00030014,2]
[400653262,1767768646426,-250.0,0.00030014,2]
[400653263,1767768646435,-250.0,0.00030014,2]
[400653264,1767768646444,-250.0,0.00030014,2]
[400653265,1767768646454,-1500.0,0.00030014,2]
[400653266,1767768646463,-250.0,0.00030014,2]
[400653267,1767768646472,-1500.0,0.00030014,2]
[400653268,1767768646482,-252.94566259,0.00030014,2]
[400653269,1767768646491,-250.0,0.00030014,2]
[400653270,1767768646500,-1500.0,0.00030014,2]
[400653271,1767768646509,-302.29046048,0.00030014,2]
[400653272,1767768646519,-151.0,0.00030014,2]
[400653273,1767768646529,-1500.0,0.00030014,2]
[400653274,1767768646539,-151.0,0.00030014,2]
[400653275,1767768646549,-1500.0,0.00030014,2]
[400653276,1767768646558,-241.40612291,0.00030014,2]
[400653277,1767768646568,-500.0,0.00030014,2]
[400653278,1767768646577,-500.0,0.00030014,2]
[400653279,1767768646586,-500.0,0.00030014,2]
[400653280,1767768646596,-500.0,0.00030014,2]
[400653281,1767768646608,-500.0,0.00030014,2]
[400653282,1767768646618,-500.0,0.00030014,2]
[400653283,1767768646627,-160.56089558,0.00030014,2]
[400653284,1767768646637,-562.53594477,0.00030014,2]
[400653285,1767768646646,-187.78006526,0.00030014,2]
[400653286,1767768646655,-2487.15318209,0.00030014,2]
[400653287,1767768646666,-199.37,0.00030098,30]
[400653288,1767768646676,-2875.33898822,0.000301,7]
[400653289,1767768646686,-1346.23,0.00030136,6]
[400653290,1767768646696,-1150.0,0.00030137,5]
[400653291,1767768646705,-500.0,0.00030137,10]
[400653292,1767768646715,-650.0,0.00030137,5]
[400653293,1767768646725,-650.0,0.00030137,5]
[400653294,1767768646735,-500.0,0.00030137,15]
[400653295,1767768646745,-294.0771,0.00030137,2]
[400653296,1767768646754,-1908.17,0.000302,7]
[400653297,1767768646764,-167.78,0.000303,7]
[400653298,1767768646773,-2445.01,0.000304,14]
[400653299,1767768646783,-109034.6385343,0.00030493,2]
[400653300,1767768646792,-151.0,0.00030493,7]
[400653301,1767768646802,-390.92977,0.00030493,31]
[400653302,1767768646811,-390.92977,0.00030493,31]
[400653303,1767768646821,-151.0,0.00030493,31]
[400653304,1767768646830,-390.92977,0.00030493,31]
[400653305,1767768646840,-154.121516,0.00030493,30]
[400653306,1767768646849,-390.92977,0.00030493,31]
[400653307,1767768646858,-207.061221,0.00030493,31]
[400653308,1767768646868,-151.0,0.00030493,31]
[400653309,1767768646877,-186.329815,0.00030493,31]
[400653310,1767768646888,-186.329815,0.00030493,31]
[400653311,1767768646898,-186.329815,0.00030493,31]
[400653312,1767768646908,-186.329815,0.00030493,31]
[400653313,1767768646917,-151.0,0.00030493,31]
[400653314,1767768646927,-151.0,0.00030493,31]
[400653315,1767768646937,-151.0,0.00030493,31]
[400653316,1767768646946,-232.576988,0.00030493,31]
[400653317,1767768646955,-300.0,0.00030493,31]
[400653318,1767768646964,-164.70126,0.00030493,31]
[400653319,1767768646974,-300.0,0.00030493,31]
[400653320,1767768646983,-300.0,0.00030493,31]
[400653321,1767768646993,-300.0,0.00030493,31]
[400653322,1767768647003,-1000.0,0.00030533,30]
[400653323,1767768647012,-487.0,0.00030533,30]
[400653324,1767768647021,-2000.0,0.00030536,7]
[400653325,1767768647030,-372.27424823,0.0003055,21]
[400653326,1767768647040,-151.0,0.00030562,2]
[400653327,1767768647050,-533.88981491,0.00030562,2]
[400653328,1767768647060,-31110.0,0.00030562,2]
[400653329,1767768647070,-2579.17784983,0.00030562,2]
[400653330,1767768647079,-587.58501506,0.00030599,7]
[400653331,1767768647089,-1299.19626571,0.00030685,5]
[400653332,1767768647098,-500.0,0.00030685,15]
[400653333,1767768647108,-750.0,0.00030685,5]
[400653334,1767768647117,-750.65512167,0.00030685,5]
[400653335,1767768647126,-258.12,0.000307,7]
[400653336,1767768647136,-243.07,0.000307,7]
[400653337,1767768647145,-15924.41,0.000307,6]
[400653338,1767768647155,-329.0,0.00030785,2]
[400653339,1767768647164,-280.28268334,0.00030895,7]
[400653340,1767768647173,-402.32,0.00030958,30]
[400653341,1767768647183,-2200.0,0.00030995,7]
[400653342,1767768647192,-191.73798973,0.00031,120]
[400653343,1767768647201,-190.2708929,0.00031,120]
[400653344,1767768647210,-191.51603111,0.00031,120]
[400653345,1767768647219,-176.11325056,0.00031,120]
[400653346,1767768647231,-174.41697135,0.00031,120]
[400653347,1767768647241,-163.98489072,0.00031,120]
[400653348,1767768647250,-186.0317041,0.00031,120]
[400653349,1767768647259,-164.04291735,0.00031,120]
[400653350,1767768647269,-206.91086702,0.00031,120]
[400653351,1767768647278,-194.89245098,0.00031,120]
[400653352,1767768647290,-1019.0,0.00031,7]
[400653353,1767768647301,-346.1,0.00031029,4]
[400653354,1767768647310,-2000.0,0.00031062,7]
[400653355,1767768647320,-382.0,0.00031068,2]
[400653356,1767768647329,-25963.54,0.000311,2]
[400653357,1767768647342,-152.42996206,0.0003111,2]
[400653358,1767768647352,-553.64373807,0.0003111,2]
[400653359,1767768647363,-32261.07,0.0003111,2]
[400653360,1767768647373,-2674.60743027,0.0003111,2]
[400653361,1767768647384,-157.018213,0.00031139,10]
[400653362,1767768647394,-174.0,0.00031151,44]
[400653363,1767768647404,-3565.01955011,0.00031208,32]
[400653364,1767768647413,-1981.16465421,0.0003125,10]
[400653365,1767768647422,-5000.0,0.00031288,2]
[400653366,1767768647432,-249.21,0.00031353,30]
[400653367,1767768647442,-452.5009519,0.00031371,2]
[400653368,1767768647451,-677.39279646,0.00031451,2]
[400653369,1767768647460,-402.32,0.00031506,31]
[400653370,1767768647469,-1346.23,0.00031506,8]
[400653371,1767768647478,-2200.0,0.0003155,7]
[400653372,1767768647488,-2800.0,0.00031558,7]
[400653373,1767768647497,-2000.0,0.00031588,7]
[400653374,1767768647506,-574.12855637,0.00031658,2]
[400653375,1767768647516,-33454.72959,0.00031658,2]
[400653376,1767768647525,-2773.56790519,0.00031658,2]
[400653377,1767768647534,-191.73798973,0.000319,120]
[400653378,1767768647543,-190.2708929,0.000319,120]
[400653379,1767768647552,-191.51603111,0.000319,120]
[400653380,1767768647562,-174.41697135,0.000319,120]
[400653381,1767768647571,-186.0317041,0.000319,120]
[400653382,1767768647581,-164.04291735,0.000319,120]
[400653383,1767768647691,-206.91086702,0.000319,120]
[400653384,1767768647700,-1908.17,0.000319,7]
[400653385,1767768647709,-500.0,0.0003194,7]
[400653386,1767768647720,-1019.0,0.00032,7]
[400653387,1767768647729,-402.32,0.00032054,32]
[400653388,1767768647739,-2445.01,0.000321,14]
[400653389,1767768647749,-5416.70070875,0.00032106,2]
[400653390,1767768647759,-2414.2803724,0.00032112,2]
[400653391,1767768647768,-2000.0,0.00032113,7]
[400653392,1767768647777,-157.01821301,0.00032132,10]
[400653393,1767768647787,-595.37131296,0.00032206,2]
[400653394,1767768647797,-34692.55458483,0.00032206,2]
[400653395,1767768647806,-2876.18991768,0.00032206,2]
[400653396,1767768647815,-1000.0,0.000324,120]
[400653397,1767768647824,-180.24693831,0.00032437,9]
[400653398,1767768647834,-8045.68317556,0.00032485,2]
[400653399,1767768647843,-2414.2803724,0.00032599,2]
[400653400,1767768647853,-402.32,0.00032602,33]
[400653401,1767768647863,-299.05,0.00032607,30]
[400653402,1767768647872,-346.1,0.00032636,5]
[400653403,1767768647881,-2000.0,0.00032639,7]
[400653404,1767768647891,-3897.01690985,0.0003266,33]